bitfinex-derivatives/quotes_SOLF0:USTF0_20250505
["timestamp","ask_amount","ask_price","bid_price","bid_amount"]
[1746428298314,3.27168118,146.9,146.84,27.05168118]
[1746428299016,6.8077,146.89,146.86,6.8085]
[1746428300318,3.27168118,146.9,146.84,27.05168118]
[1746428300516,3.27168118,146.86,146.82,8.06780975]
[1746428300923,6.8096,146.85,146.83,6.8102]
[1746428301915,10.08068118,146.86,146.83,6.8102]
[1746428304522,3.27168118,146.88,146.82,3.27168118]
[1746428305221,10.07988118,146.88,146.84,6.8094]
[1746428306522,6.8084,146.87,146.84,6.8094]
[1746428307239,6.8081,146.88,146.85,6.8092]
[1746428307426,6.8081,146.88,146.82,3.27168118]
[1746428307724,6.8081,146.88,146.84,6.8094]
[1746428310123,6.8081,146.88,146.85,6.8092]
[1746428312030,381.8,146.92,146.87,6.8083]
[1746428312327,385.07168118,146.92,146.87,6.8083]
[1746428312629,6.8071,146.9,146.87,6.8083]
[1746428313628,10.07878118,146.9,146.87,6.8083]
[1746428317124,6.8071,146.9,146.87,6.8083]
[1746428327233,6.8066,146.91,146.88,6.8079]
[1746428327533,10.07828118,146.91,146.88,6.8079]
[1746428327726,3.27168118,146.91,146.85,23.78]
[1746428328231,6.8073,146.9,146.87,6.8081]
[1746428332341,10.07918118,146.89,146.86,6.8087]
[1746428332636,3.27168118,146.87,146.82,27.09168118]
[1746428332929,3.27168118,146.87,146.82,23.82]
[1746428333633,6.8093,146.85,146.82,30.6306]
[1746428334536,10.08098118,146.85,146.82,30.6306]
[1746428336135,6.8093,146.85,146.82,30.6306]
[1746428338336,10.08068118,146.86,146.82,30.6306]
[1746428342137,6.8093,146.85,146.82,30.6306]
[1746428343042,10.08068118,146.86,146.83,6.8102]
[1746428343738,6.809,146.86,146.83,6.8102]
[1746428344334,6.8084,146.87,146.84,6.8096]
[1746428349746,6.8084,146.87,146.81,119.27128401]
[1746428349747,27.09168118,146.88,146.81,119.27128401]
[1746428349940,3.27168118,146.84,146.78,56.16166072]
[1746428350141,3.27168118,146.82,146.78,56.16166072]
[1746428350342,3.27168118,146.82,146.79,6.8118]
[1746428352145,5.8807,146.87,146.78,23.96]
[1746428352342,3.27168118,146.83,146.78,23.96]
[1746428352739,6.8109,146.82,146.79,6.812]
[1746428354948,10.08208118,146.83,146.79,6.812]
[1746428360352,6.8107,146.82,146.79,6.812]
[1746428360545,3.27168118,146.83,146.78,30.7724]
[1746428360746,3.27168118,146.83,146.78,23.96]
[1746428362151,6.8109,146.82,146.79,6.8118]
[1746428366458,10.08208118,146.83,146.79,6.8118]
[1746428368061,6.8107,146.82,146.79,6.8118]
[1746428368263,3.27168118,146.83,146.79,6.8118]
[1746428368563,10.08208118,146.83,146.79,6.8118]
[1746428369166,6.8108,146.82,146.79,6.8118]
[1746428370163,6.8111,146.81,146.78,30.7724]
[1746428370366,3.27168118,146.83,146.78,30.7724]
[1746428370664,3.27168118,146.83,146.78,23.96]
[1746428370965,6.8109,146.82,146.79,6.8118]
[1746428373668,3.27168118,146.83,146.78,23.96]
[1746428373966,3.27168118,146.83,146.78,27.23168118]
[1746428375167,10.08198118,146.83,146.8,6.8113]
[1746428379670,6.8103,146.83,146.8,6.8113]
[1746428379871,34.04168118,146.84,146.81,6.8111]
[1746428384573,6.8103,146.83,146.8,6.8114]
[1746428384774,6.8103,146.83,146.78,27.23168118]
[1746428384775,27.23168118,146.84,146.78,27.23168118]
[1746428385075,6.8105,146.83,146.8,6.8113]
[1746428391179,6.8107,146.82,146.8,6.8113]
[1746428393878,6.8104,146.83,146.8,6.8113]
[1746428395385,6.8107,146.82,146.79,6.8118]
[1746428396185,6.8107,146.82,146.8,6.8116]
[1746428399385,6.8104,146.83,146.8,6.8116]
[1746428401983,6.8107,146.82,146.8,6.8116]
[1746428402186,3.27168118,146.82,146.77,23.96]
[1746428402489,3.27168118,146.82,146.76,8.05041518]
[1746428402783,23.96,146.84,146.76,8.05041518]
[1746428402982,358.0,146.86,146.78,3.27168118]
[1746428403179,358.0,146.86,146.8,3.27168118]
[1746428403383,364.809,146.86,146.8,3.27168118]
[1746428403983,23.96,146.93,146.84,3.27168118]
[1746428404188,27.23168118,146.93,146.87,3.27168118]
[1746428404481,3.27168118,146.89,146.84,23.96]
[1746428405086,6.8087,146.87,146.83,6.8101]
[1746428407288,6.8088,146.86,146.83,6.8101]
[1746428407489,6.8088,146.86,146.82,6.8104]
[1746428407888,3.27168118,146.85,146.81,23.96]
[1746428408092,3.27168118,146.85,146.79,3.27168118]
[1746428408392,3.27168118,146.85,146.79,35.28209636]
[1746428408582,6.8099,146.84,146.79,35.28209636]
[1746428408788,3.27168118,146.87,146.81,3.27168118]
[1746428409593,6.8093,146.86,146.81,3.27168118]
[1746428410289,6.8093,146.86,146.82,6.8105]
[1746428411288,6.8094,146.85,146.82,6.8105]
[1746428412196,3.27168118,146.85,146.79,27.23168118]
[1746428412390,3.27168118,146.83,146.79,23.96]
[1746428412998,10.08218118,146.83,146.8,6.8116]
[1746428414396,3.27168118,146.83,146.8,6.8116]
[1746428414998,10.08188118,146.83,146.8,6.8116]
[1746428417301,3.27168118,146.85,146.81,6.8109]
[1746428417794,3.27168118,146.85,146.82,6.8104]
[1746428419302,10.08098118,146.85,146.81,6.811]
[1746428420493,10.08098118,146.85,146.82,6.8106]
[1746428421197,6.81,146.84,146.8,3.27168118]
[1746428421403,3.27168118,146.81,146.76,32.21041518]
[1746428421798,3.27168118,146.81,146.77,8.05041518]
[1746428422004,10.08308118,146.81,146.78,6.8124]
[1746428423009,3.27168118,146.81,146.78,6.8124]
[1746428424404,10.08278118,146.81,146.78,6.8124]
[1746428425101,10.08278118,146.81,146.77,6.8129]
[1746428427110,10.08278118,146.81,146.78,6.8124]
[1746428428409,10.08278118,146.81,146.77,6.8129]
[1746428431115,6.8111,146.81,146.77,6.8129]
[1746428431416,10.08278118,146.81,146.77,6.8129]
[1746428433016,10.08278118,146.81,146.78,6.8124]
[1746428433811,10.08278118,146.81,146.77,6.8129]
[1746428434012,6.8116,146.8,146.77,6.8129]
[1746428434615,10.08298118,146.81,146.77,6.8129]
[1746428440919,6.8116,146.8,146.77,6.8129]
[1746428441120,3.27168118,146.81,146.76,24.16]
[1746428441514,6.8125,146.78,146.76,24.16]
[1746428442225,6.8123,146.79,146.76,24.16]
[1746428442522,3.27168118,146.81,146.76,24.16]
[1746428443025,6.8124,146.79,146.76,24.16]
[1746428443227,3.27168118,146.81,146.76,30.9733]
[1746428443825,6.8121,146.79,146.76,30.9733]
[1746428444828,6.8117,146.8,146.77,6.8129]
[1746428445030,3.27168118,146.81,146.76,24.16]
[1746428445730,3.27168118,146.81,146.76,27.43168118]
[1746428446229,10.08298118,146.81,146.78,6.8125]
[1746428449030,6.8117,146.8,146.77,6.8128]
[1746428449229,3.27168118,146.81,146.76,27.43168118]
[1746428450230,10.08298118,146.81,146.78,6.8125]
[1746428453930,6.8116,146.8,146.77,6.8128]
[1746428454834,26.1075,146.84,146.77,3.27168118]
[1746428455025,5.21918118,146.84,146.77,3.27168118]
[1746428455430,12.02938118,146.84,146.8,6.8113]
[1746428455630,5.21918118,146.84,146.8,6.8113]
[1746428455830,3.27168118,146.84,146.8,6.8113]
[1746428456128,3.27168118,146.84,146.79,3.27168118]
[1746428456332,3.27168118,146.86,146.8,24.1]
[1746428456528,6.8096,146.85,146.82,6.8103]
[1746428456729,3.27168118,146.86,146.8,24.1]
[1746428456935,3.27168118,146.86,146.81,3.27168118]
[1746428457134,3.27168118,146.86,146.84,6.8097]
[1746428457434,3.27168118,146.86,146.81,3.27168118]
[1746428458235,10.08048118,146.86,146.83,6.81]
[1746428460343,3.27168118,146.86,146.83,6.81]
[1746428463535,27.37168118,146.87,146.81,3.27168118]
[1746428463736,5.26498118,146.89,146.83,3.27168118]
[1746428463935,24.1,146.9,146.85,3.27168118]
[1746428464137,24.1,146.9,146.86,6.8085]
[1746428464935,24.1,146.9,146.87,6.8083]
[1746428465139,3.27168118,146.91,146.85,3.27168118]
[1746428465537,3.27168118,146.91,146.88,6.8076]
[1746428466742,3.27168118,146.91,146.87,6.8082]
[1746428467145,10.07828118,146.91,146.87,6.8082]
[1746428467442,10.07828118,146.91,146.88,6.8079]
[1746428467641,27.37168118,146.93,146.87,3.27168118]
[1746428467838,6.8061,146.92,146.85,3.9985]
[1746428468745,6.8061,146.92,146.88,6.8076]
[1746428469642,6.8065,146.91,146.88,6.8076]
[1746428470544,6.807,146.9,146.85,3.9985]
[1746428470943,29.20927742,146.93,146.84,24.1]
[1746428472046,29.20927742,146.93,146.85,6.8091]
[1746428472343,6.8078,146.89,146.85,6.8091]
[1746428473044,6.8079,146.88,146.85,6.8091]
[1746428473249,29.20927742,146.93,146.85,6.8091]
[1746428473944,29.20927742,146.93,146.84,24.1]
[1746428474142,24.1,146.93,146.84,29.20927742]
[1746428474643,6.8059,146.93,146.89,6.8071]
[1746428475144,6.8061,146.92,146.89,6.8071]
[1746428475740,6.8058,146.93,146.89,6.8071]
[1746428476039,6.8058,146.93,146.9,6.8069]
[1746428476250,2.0961,146.95,146.88,24.18]
[1746428476542,6.8052,146.94,146.88,24.18]
[1746428476743,6.8052,146.94,146.9,6.8065]
[1746428477946,6.8056,146.93,146.9,6.8065]
[1746428479146,6.8053,146.94,146.91,6.8065]
[1746428481348,6.8056,146.93,146.9,6.8068]
[1746428481948,6.8053,146.94,146.91,6.8064]
[1746428482448,2.0961,146.95,146.88,24.18]
[1746428482645,8.901,146.95,146.88,24.18]
[1746428483449,6.8049,146.95,146.88,24.18]
[1746428484051,6.8052,146.94,146.88,24.18]
[1746428484844,6.8056,146.93,146.88,24.18]
[1746428486251,6.8056,146.93,146.9,6.8066]
[1746428486747,2.1489,146.98,146.88,24.18]
[1746428487551,2.1489,146.98,146.9,6.8069]
[1746428487740,6.8059,146.93,146.9,6.8069]
[1746428488046,24.18,146.92,146.8,64.40332146]
[1746428488252,5.11860121,146.83,146.8,64.40332146]
[1746428488454,6.8107,146.82,146.81,25.75066072]
[1746428489253,6.8107,146.82,146.81,24.15124554]
[1746428490056,6.8111,146.81,146.8,64.40332146]
[1746428490452,29.29866565,146.83,146.79,95.98254446]
[1746428491853,11.93026565,146.8,146.79,95.98254446]
[1746428492757,5.11866565,146.8,146.74,4.0091]
[1746428493760,6.8134,146.77,146.74,4.0091]
[1746428494260,6.8136,146.76,146.74,4.0091]
[1746428495658,6.8131,146.77,146.74,4.0091]
[1746428496056,5.11866565,146.8,146.74,4.0091]
[1746428496354,6.8139,146.75,146.74,4.0091]
[1746428496557,6.8139,146.75,146.74,1.9735]
[1746428498356,6.8144,146.74,146.72,24.18]
[1746428498554,5.11866565,146.77,146.72,24.18]
[1746428498860,5.11866565,146.77,146.7,2.0004]
[1746428499556,5.11866565,146.74,146.7,2.0004]
[1746428499758,5.11866565,146.74,146.69,24.18]
[1746428500961,24.18,146.75,146.69,24.18]
[1746428501464,6.8155,146.72,146.69,24.18]
[1746428502862,6.8158,146.71,146.68,2.0408]
[1746428503164,5.11866565,146.74,146.68,2.0408]
[1746428504265,6.8163,146.7,146.68,2.0408]
[1746428504664,6.8163,146.7,146.67,3.9164]
[1746428504962,6.8167,146.69,146.67,3.9164]
[1746428505163,6.8167,146.69,146.67,1.9497]
[1746428505562,6.8166,146.7,146.67,1.9497]
[1746428508473,6.8167,146.69,146.67,1.9497]
[1746428509377,5.12518968,146.73,146.67,1.9497]
[1746428509570,5.12395788,146.74,146.67,1.9497]
[1746428510076,5.12514159,146.73,146.67,1.9497]
[1746428510275,5.12514159,146.73,146.66,24.2]
[1746428510576,6.8167,146.69,146.66,6.8179]
[1746428510775,6.8167,146.69,146.66,11.8179]
[1746428514479,6.8167,146.69,146.66,5.0]
[1746428515579,6.8167,146.69,146.66,11.818]
[1746428516479,6.8164,146.7,146.66,11.818]
[1746428517073,24.22,146.71,146.66,5.0]
[1746428517581,31.0361,146.71,146.66,5.0]
[1746428518077,24.22,146.71,146.66,5.0]
[1746428518280,24.22,146.71,146.68,6.8168]
[1746428518583,5.12544372,146.73,146.68,6.8168]
[1746428519379,6.8159,146.71,146.68,6.8168]
[1746428521479,6.8159,146.71,146.67,6.8175]
[1746428522183,5.12544372,146.73,146.67,6.8175]
[1746428522883,6.8161,146.71,146.67,6.8175]
[1746428524484,6.8161,146.71,146.66,5.0]
[1746428524485,6.8161,146.71,146.68,6.817]
[1746428524681,6.8161,146.71,146.66,5.0]
[1746428525281,6.8161,146.71,146.68,6.8171]
[1746428525784,6.8161,146.71,146.67,6.8174]
[1746428526087,6.8163,146.7,146.67,6.8174]
[1746428526475,5.12580563,146.72,146.66,5.0]
[1746428527976,5.12580563,146.72,146.66,11.8181]
[1746428528686,6.8166,146.7,146.66,11.8181]
[1746428529082,6.8166,146.7,146.67,6.8176]
[1746428530183,6.8166,146.7,146.66,11.8179]
[1746428531287,6.8166,146.7,146.67,6.8176]
[1746428531585,6.816,146.71,146.66,5.0]
[1746428531791,6.816,146.71,146.68,6.8172]
[1746428531987,6.816,146.71,146.66,5.0]
[1746428532286,6.8163,146.7,146.67,6.8174]
[1746428535392,6.8168,146.69,146.67,6.8174]
[1746428535690,5.12517691,146.73,146.67,6.8174]
[1746428536892,6.8166,146.7,146.67,6.8174]
[1746428538493,5.12559834,146.72,146.66,11.8178]
[1746428538694,5.12590688,146.72,146.66,11.8178]
[1746428539389,6.8167,146.7,146.66,11.8178]
[1746428540994,6.8167,146.69,146.66,11.8178]
[1746428543095,6.8165,146.7,146.67,6.8176]
[1746428543894,6.816,146.71,146.67,6.8176]
[1746428544289,6.8167,146.7,146.66,11.8179]
[1746428544494,6.8167,146.7,146.66,5.0]
[1746428545196,6.8167,146.7,146.67,6.8174]
[1746428545593,36.02170688,146.72,146.66,5.0]
[1746428545790,24.08,146.72,146.66,5.0]
[1746428546298,6.8158,146.71,146.68,6.8169]
[1746428546594,24.08,146.72,146.66,5.0]
[1746428546994,5.1244791,146.71,146.66,5.0]
[1746428548198,6.817,146.69,146.66,11.818]
[1746428549899,5.1244791,146.71,146.66,5.0]
[1746428550297,5.1244791,146.68,146.64,2.1389]
[1746428550498,6.8186,146.65,146.64,2.1389]
[1746428550892,6.8186,146.65,146.63,2.1384]
[1746428551199,6.8186,146.65,146.62,6.8198]
[1746428552197,6.8183,146.66,146.62,6.8198]
[1746428554997,6.8186,146.65,146.62,6.8198]
[1746428556703,6.8194,146.64,146.6,32.9423]
[1746428557002,5.1244791,146.65,146.6,2.0416]
[1746428557197,5.1244791,146.62,146.54,32.15917629]
[1746428557402,11.9447791,146.62,146.58,6.8215]
[1746428558502,11.9447791,146.62,146.59,6.8213]
[1746428562107,5.1244791,146.62,146.6,6.8208]
[1746428566611,11.9444791,146.62,146.59,6.8212]
[1746428568013,6.8205,146.61,146.58,6.8217]
[1746428568511,6.8205,146.61,146.59,6.8213]
[1746428568911,11.9446791,146.62,146.59,6.8213]
[1746428571807,6.8205,146.61,146.59,6.8213]
[1746428573211,6.8205,146.61,146.58,6.8216]
[1746428582016,6.821,146.6,146.57,6.8221]
[1746428582319,29.0844791,146.59,146.54,4.0363]
[1746428582519,23.96,146.59,146.54,4.0363]
[1746428582721,23.96,146.59,146.56,6.8225]
[1746428583019,5.1244791,146.61,146.56,6.8225]
[1746428583420,5.1244791,146.61,146.54,4.0363]
[1746428583615,23.96,146.62,146.54,4.0363]
[1746428583815,23.96,146.62,146.55,23.96]
[1746428584115,6.8207,146.61,146.57,6.822]
[1746428584322,23.96,146.62,146.55,23.96]
[1746428585522,30.7801,146.62,146.58,6.8215]
[1746428587220,23.96,146.62,146.55,23.96]
[1746428587421,29.0844791,146.65,146.55,23.96]
[1746428587915,35.9032791,146.65,146.55,23.96]
[1746428588420,23.96,146.65,146.63,6.8194]
[1746428588916,6.8179,146.67,146.62,6.8198]
[1746428589422,6.8183,146.66,146.62,6.8198]
[1746428589921,6.8186,146.65,146.61,6.8203]
[1746428591524,29.0844791,146.68,146.6,5.9921]
[1746428592218,5.1244791,146.65,146.59,23.96]
[1746428592521,23.96,146.64,146.56,23.96]
[1746428592715,6.8201,146.62,146.57,6.822]
[1746428593025,6.8201,146.62,146.56,23.96]
[1746428593218,23.96,146.64,146.6,6.8208]
[1746428593724,23.96,146.64,146.56,23.96]
[1746428593924,23.96,146.67,146.56,23.96]
[1746428594728,6.8188,146.65,146.61,6.8202]
[1746428596826,6.8191,146.64,146.61,6.8202]
[1746428598426,6.8187,146.65,146.61,6.8202]
[1746428599628,6.8187,146.65,146.62,6.8199]
[1746428599921,6.8187,146.65,146.56,23.96]
[1746428600322,6.8187,146.65,146.61,6.8202]
[1746428602331,6.8187,146.65,146.62,6.8199]
[1746428603532,6.8182,146.66,146.63,6.8194]
[1746428603733,23.96,146.67,146.6,23.98]
[1746428604031,5.1244791,146.68,146.61,5.8482]
[1746428604032,29.1044791,146.68,146.61,5.8482]
[1746428604231,6.8178,146.67,146.63,6.8194]
[1746428606633,6.8178,146.67,146.64,6.819]
[1746428608334,6.8178,146.67,146.63,6.8193]
[1746428608737,6.8181,146.66,146.63,6.8193]
[1746428613038,6.8181,146.66,146.62,6.8198]
[1746428615142,6.8181,146.66,146.63,6.8194]
[1746428615343,23.98,146.68,146.61,5.8482]
[1746428615843,29.1044791,146.71,146.65,6.8182]
[1746428616143,6.8169,146.69,146.65,6.8182]
[1746428616639,6.8169,146.69,146.66,6.818]
[1746428616939,6.8164,146.7,146.66,6.818]
[1746428617336,6.8164,146.7,146.67,6.8176]
[1746428617648,6.8164,146.7,146.64,23.98]
[1746428618142,6.8164,146.7,146.66,6.8178]
[1746428620445,6.8164,146.7,146.67,6.8176]
[1746428620839,30.7959,146.71,146.64,23.98]
[1746428621142,29.1044791,146.74,146.64,23.98]
[1746428621342,29.1044791,146.74,146.69,6.8166]
[1746428621644,6.8155,146.72,146.69,6.8166]
[1746428622045,6.8155,146.72,146.68,6.817]
[1746428623046,6.8158,146.71,146.68,6.817]
[1746428630055,6.8155,146.72,146.69,6.8167]
[1746428630556,29.1044791,146.74,146.64,23.98]
[1746428630757,6.8158,146.71,146.68,6.8169]
[1746428631057,29.1044791,146.74,146.64,23.98]
[1746428632255,6.8152,146.73,146.64,23.98]
[1746428633457,30.7945,146.74,146.71,6.8157]
[1746428633653,23.98,146.74,146.68,23.9]
[1746428633964,23.98,146.74,146.69,4.1332]
[1746428634256,23.98,146.74,146.72,6.8153]
[1746428634456,6.8142,146.75,146.72,6.8153]
[1746428634656,29.0244791,146.77,146.69,4.1332]
[1746428634858,29.0244791,146.77,146.7,6.8159]
[1746428636252,6.8147,146.74,146.71,6.8158]
[1746428636859,6.8147,146.74,146.69,4.1332]
[1746428636860,29.0244791,146.77,146.69,4.1332]
[1746428637158,29.0244791,146.77,146.69,6.1641]
[1746428637347,6.8138,146.76,146.73,6.8147]
[1746428640761,6.814,146.75,146.73,6.8147]
[1746428640961,29.0244791,146.77,146.73,6.8147]
[1746428643158,6.8138,146.76,146.73,6.8147]
[1746428643564,29.0244791,146.77,146.72,6.8152]
[1746428643766,3.27763838,146.75,146.72,6.8152]
[1746428644063,10.09183838,146.75,146.71,6.8155]
[1746428644365,10.09183838,146.75,146.69,9.44173838]
[1746428645260,3.27763838,146.75,146.72,6.8151]
[1746428645561,3.27763838,146.75,146.69,9.44173838]
[1746428645965,10.09163838,146.75,146.72,6.8151]
[1746428646867,6.8144,146.74,146.71,6.8156]
[1746428647269,3.27763838,146.75,146.71,6.8156]
[1746428648161,10.09183838,146.75,146.71,6.8156]
[1746428648661,10.09183838,146.75,146.72,6.8153]
[1746428650165,6.8142,146.75,146.72,6.8153]
[1746428651369,6.8142,146.75,146.73,6.8148]
[1746428651569,6.8136,146.76,146.73,6.8148]
[1746428652473,6.814,146.75,146.72,6.8151]
[1746428653472,6.8137,146.76,146.72,6.8151]
[1746428654666,6.8137,146.76,146.73,6.8148]
[1746428654867,6.8137,146.76,146.7,3.27763838]
[1746428655068,6.814,146.75,146.7,3.27763838]
[1746428655673,6.814,146.75,146.72,6.815]
[1746428657576,3.27763838,146.75,146.69,6.1641]
[1746428657775,3.27763838,146.73,146.69,6.1641]
[1746428658077,10.09283838,146.73,146.69,12.9805]
[1746428659178,6.8154,146.72,146.69,12.9805]
[1746428660280,10.09263838,146.73,146.69,12.9805]
[1746428661482,6.8155,146.72,146.69,12.9805]
[1746428662080,6.8155,146.72,146.69,2.0175]
[1746428662682,6.8155,146.72,146.69,8.834]
[1746428663576,6.8155,146.72,146.69,2.0175]
[1746428664281,3.27763838,146.73,146.68,23.9]
[1746428664482,3.27763838,146.71,146.68,23.9]
[1746428664681,3.27763838,146.71,146.66,3.27763838]
[1746428664983,10.09373838,146.71,146.67,6.8174]
[1746428666586,10.09373838,146.71,146.68,6.8172]
[1746428669687,6.8155,146.72,146.69,6.8167]
[1746428672588,6.8155,146.72,146.68,6.817]
[1746428672787,6.8159,146.71,146.68,6.817]
[1746428675384,6.8155,146.72,146.69,6.8167]
[1746428676290,6.8158,146.71,146.68,6.817]
[1746428676493,10.09343838,146.71,146.66,3.27763838]
[1746428677595,6.8163,146.7,146.67,6.8174]
[1746428678492,6.8169,146.69,146.66,6.8181]
[1746428678890,3.27763838,146.69,146.64,1.9482]
[1746428679189,3.27763838,146.67,146.64,1.9482]
[1746428679891,10.09553838,146.67,146.64,8.7669]
[1746428681289,6.8182,146.66,146.63,8.8898]
[1746428686895,6.8182,146.66,146.63,2.0704]
[1746428687296,6.8186,146.65,146.62,23.88]
[1746428687697,6.8186,146.65,146.61,10.09793838]
[1746428689202,6.8191,146.64,146.6,8.772]
[1746428690901,6.8191,146.64,146.61,6.8204]
[1746428691200,10.09623838,146.65,146.61,6.8204]
[1746428692903,10.09623838,146.65,146.62,6.8198]
[1746428701811,10.09623838,146.65,146.63,6.8193]
[1746428701812,3.27763838,146.65,146.63,6.8193]
[1746428702108,6.8182,146.66,146.63,6.8193]
[1746428703213,6.8187,146.65,146.62,6.8197]
[1746428703710,10.09633838,146.65,146.62,6.8197]
[1746428710018,3.27763838,146.63,146.59,23.88]
[1746428710218,3.27763838,146.63,146.56,6.1901]
[1746428710519,3.27763838,146.61,146.57,6.8219]
[1746428711018,27.17763838,146.61,146.55,106.28909169]
[1746428712420,33.99833838,146.61,146.57,6.822]
[1746428712815,33.99833838,146.61,146.55,106.28909169]
[1746428713121,23.9,146.61,146.59,6.8213]
[1746428713323,3.27763838,146.63,146.59,6.8213]
[1746428713722,23.9,146.64,146.59,6.8213]
[1746428714222,6.8202,146.62,146.59,6.8213]
[1746428714916,6.8204,146.61,146.55,106.28909169]
[1746428715121,6.8204,146.61,146.58,6.8217]
[1746428716023,6.8201,146.62,146.58,6.8217]
[1746428716522,23.9,146.64,146.58,6.8217]
[1746428716822,5.13002162,146.63,146.57,6.8221]
[1746428717321,6.8212,146.6,146.57,6.8221]
[1746428717522,6.8212,146.6,146.56,6.8225]
[1746428718124,6.8215,146.59,146.56,6.8225]
[1746428719823,6.8211,146.6,146.56,6.8225]
[1746428720027,6.8211,146.6,146.57,6.8222]
[1746428722326,6.8204,146.62,146.58,6.8216]
[1746428722522,23.9,146.64,146.55,106.28909169]
[1746428722827,23.9,146.64,146.59,6.8211]
[1746428723423,6.8201,146.62,146.6,6.8209]
[1746428723627,23.9,146.64,146.6,6.8209]
[1746428724229,6.8198,146.63,146.6,6.8209]
[1746428726430,6.8198,146.63,146.55,106.28909169]
[1746428726431,30.7192,146.64,146.55,106.28909169]
[1746428728232,30.7192,146.64,146.61,6.8201]
[1746428732633,381.88,146.67,146.59,23.88]
[1746428732933,381.88,146.67,146.6,6.0921]
[1746428733237,6.819,146.65,146.61,6.8201]
[1746428733436,6.819,146.65,146.6,6.0921]
[1746428734032,6.819,146.65,146.62,6.8199]
[1746428734336,6.8191,146.64,146.6,6.0921]
[1746428735236,6.8191,146.64,146.61,6.8201]
[1746428735536,6.8188,146.65,146.6,6.0921]
[1746428736135,6.8188,146.65,146.62,6.8199]
[1746428737337,6.8191,146.64,146.61,6.8203]
[1746428738037,3.28209813,146.66,146.61,6.8203]
[1746428738038,6.8188,146.65,146.61,6.8203]
[1746428741841,6.8188,146.65,146.62,6.82]
[1746428743136,6.8188,146.65,146.61,6.8202]
[1746428743341,6.8191,146.64,146.61,6.8202]
[1746428743546,3.28209813,146.66,146.61,6.8202]
[1746428744041,6.8188,146.65,146.61,6.8202]
[1746428746145,6.819,146.64,146.61,6.8202]
[1746428746843,6.8188,146.65,146.62,6.82]
[1746428747242,6.8191,146.64,146.6,6.0921]
[1746428747442,6.8191,146.64,146.61,6.8201]
[1746428749347,6.8188,146.65,146.61,6.8201]
[1746428751149,6.8188,146.65,146.62,6.8199]
[1746428757846,6.8191,146.64,146.61,6.8203]
[1746428758052,10.10119813,146.64,146.61,6.8203]
[1746428758348,10.10119813,146.64,146.6,2.1356]
[1746428758650,10.10119813,146.64,146.61,6.8201]
[1746428760252,6.8188,146.65,146.62,6.8198]
[1746428760448,23.88,146.67,146.61,3.28209813]
[1746428760752,23.88,146.67,146.61,5.22659813]
[1746428760939,23.88,146.67,146.61,7.30799813]
[1746428761250,30.6979,146.67,146.64,6.8188]
[1746428766356,6.8169,146.69,146.66,6.8181]
[1746428766554,6.8169,146.69,146.63,3.28209813]
[1746428766856,6.8169,146.69,146.65,6.8184]
[1746428767949,6.8173,146.68,146.65,6.8184]
[1746428770151,3.28209813,146.68,146.63,3.28209813]
[1746428770352,3.28209813,146.68,146.61,7.30799813]
[1746428771354,6.8181,146.66,146.63,6.8193]
[1746428771657,6.8181,146.66,146.61,7.30799813]
[1746428771955,6.8181,146.66,146.62,6.8198]
[1746428777354,6.8194,146.64,146.61,8.7649]
[1746428778255,6.8194,146.64,146.61,12.04699813]
[1746428778560,6.8182,146.66,146.63,6.8195]
[1746428778762,3.28209813,146.69,146.63,3.28209813]
[1746428778960,6.8178,146.67,146.64,6.8187]
[1746428782067,6.8178,146.67,146.63,3.28209813]
[1746428782271,6.8178,146.67,146.64,6.8189]
[1746428783768,6.8178,146.67,146.63,10.10139813]